Cogmind - Beta 16 @@@ ROGUE MODE // 2025.10.22 @ 10:17:27 // Winter2019/RPGLIKE Player: Gallgagger Result: Destroyed by Thermal Drone with Thermal Shotgun Performance ------------- Evolutions (4) 2000 Regions Visited (11) 2200 Robots Destroyed (381) 1905 Value Destroyed (15098) 15098 Prototype IDs (41) 820 Alien Tech Used (0) 0 Bonus (7836) 7836 TOTAL SCORE: 29859 Bonus ------- Triggered High Security 500 High Alert Combat Kills 6696 Follower Combat Kills 40 Aligned with FarCom 300 Met Data Miner 300 Cogmind --------- Core Integrity 0/900 Matter 235/300 Energy 77/160 System Corruption 5% Temperature Cool (12) Movement Flying (26) Location -6/Factory Parts ------- > --- POWER (2) -------- Light Nuclear Core > --- PROPULSION (5) --- Cooled Cesium-ion Thruster Cooled Cesium-ion Thruster Cooled Nuclear Pulse Thruster Cooled Nuclear Pulse Thruster Cooled Nuclear Pulse Thruster > --- UTILITY (9) ------ Gravity Neutralizer Advanced Signal Interpreter Experimental Targeting Computer Core Analyzer Armor Integrity Analyzer Advanced Weapon Cycler Improved Reaction Control System Graphene Brace > --- WEAPON (3) ------- Arc Projector 8R-AWN's Boregun 8R-AWN's Boregun > --- INVENTORY (3) ---- Cesium-ion Thruster Xenon Bombardment Thruster Power Amplifier Peak State ------------ > --- POWER ------------ Light Nuclear Core Micro Nuclear Core > --- PROPULSION ------- Cooled Cesium-ion Thruster Cooled Cesium-ion Thruster Cooled Nuclear Pulse Thruster Cooled Nuclear Pulse Thruster Cooled Nuclear Pulse Thruster > --- UTILITY ---------- Gravity Neutralizer Advanced Signal Interpreter Experimental Targeting Computer Core Analyzer Armor Integrity Analyzer Advanced Weapon Cycler Improved Reaction Control System Layered Light Armor Plating Graphene Brace > --- WEAPON ----------- Arc Projector 8R-AWN's Boregun 8R-AWN's Boregun > --- INVENTORY -------- Cesium-ion Thruster Xenon Bombardment Thruster Power Amplifier [Rating: 114] Favorites ----------- Power Light Ion Engine Engine Light Ion Engine Power Core Light Nuclear Core Propulsion Cesium-ion Thruster Treads Advanced Treads Leg Advanced Myomer Leg Wheel Wheel Flight Unit Cesium-ion Thruster Utility Salvage Targeting Computer Device Gravity Neutralizer Processor Salvage Targeting Computer Protection Layered Light Armor Plating Weapon 8R-AWN's Boregun Energy Gun Arc Projector Ballistic Gun 8R-AWN's Boregun Build | -11 -10 -10 -10 -9 -8 -7 -7 -7 -7 -6 -6 ------- Run | Yrd Mat Min Exi Min Mat Fac Low Low Dat Pro Fac Slots Evolved 15 | 4 3 . . 1 4 2 . . . . 1 Power 1 | 1 . . . . . . . . . . . Propulsion 4 | 1 1 . . . 1 1 . . . . . Utility 8 | 1 1 . . 1 3 1 . . . . 1 Weapon 2 | 1 1 . . . . . . . . . . Parts Attached 55 | 8 9 3 7 3 5 13 . . . . 7 Power 5 | 2 1 . 1 . . 1 . . . . . Engine 3 | 2 1 . . . . . . . . . . Core 2 | . . . 1 . . 1 . . . . . Reactor . | . . . . . . . . . . . . Propulsion 24 | 2 3 2 1 1 2 8 . . . . 5 Treads 2 | . . 2 . . . . . . . . . Leg 1 | . . . 1 . . . . . . . . Wheel 2 | 2 . . . . . . . . . . . Hover . | . . . . . . . . . . . . Flight 19 | . 3 . . 1 2 8 . . . . 5 Utility 18 | 2 2 1 3 1 3 4 . . . . 2 Device 7 | 2 . . 2 1 . 1 . . . . 1 Storage . | . . . . . . . . . . . . Processor 8 | . 2 . 1 . 1 3 . . . . 1 Hackware . | . . . . . . . . . . . . Protection 3 | . . 1 . . 2 . . . . . . Artifact . | . . . . . . . . . . . . Weapon 8 | 2 3 . 2 1 . . . . . . . Energy Gun 2 | 1 . . . 1 . . . . . . . Energy Cannon . | . . . . . . . . . . . . Ballistic Gun 6 | 1 3 . 2 . . . . . . . . Ballistic Cannon . | . . . . . . . . . . . . Launcher . | . . . . . . . . . . . . Special Weapon . | . . . . . . . . . . . . Impact Weapon . | . . . . . . . . . . . . Slashing Weapon . | . . . . . . . . . . . . Piercing Weapon . | . . . . . . . . . . . . Special Melee Weapon . | . . . . . . . . . . . . Unidentified Prototypes 8 | . . . 5 . 1 1 . . . . 1 Parts Lost 2 | . . . . . . . . . . . 2 Power 1 | . . . . . . . . . . . 1 Propulsion . | . . . . . . . . . . . . Utility 1 | . . . . . . . . . . . 1 Weapon . | . . . . . . . . . . . . Highest Loss Streak 2 | . . . . . . . . . . . 2 To Critical Strikes . | . . . . . . . . . . . . Average Backups 1 | . . 1 . 1 . 1 2 1 2 2 1 Power . | . . . . . . . . . . . . Propulsion . | . . . . . . . 1 . . . . Utility . | . . . . 1 . 1 1 1 2 2 1 Weapon . | . . . . . . . . . . . . Tool/Special . | . . . . . . . . . . . . Unused Backups 12 | . 4 2 4 . . 1 . . . . 1 Power 2 | . . . 2 . . . . . . . . Propulsion 3 | . 3 . . . . . . . . . . Utility 5 | . . 1 2 . . 1 . . . . 1 Weapon 2 | . 1 1 . . . . . . . . . Tool/Special . | . . . . . . . . . . . . Average Slot Usage (%) 98 | . 97 99 99 84 99 99 100 100 100 100 99 Engine 8 | . 22 18 17 8 6 2 . . . . . Core 6 | . . . . 8 6 8 11 11 11 11 10 Treads 2 | . . 3 17 . . . . . . . . Wheel 1 | . 13 . . . . . . . . . . Flight 21 | . 14 23 9 16 22 26 27 27 27 27 26 Device 12 | . 11 7 . 15 13 14 16 16 16 16 19 Processor 18 | . 12 18 18 16 18 18 22 22 22 22 21 Protection 5 | . . 1 8 . 8 8 5 5 5 5 4 Energy Gun 3 | . . . . 1 6 5 5 5 5 5 5 Ballistic Gun 16 | . 22 27 26 16 13 11 11 11 11 11 10 Peak Build Rating 114 | 10 16 22 49 53 66 94 94 95 95 95 114 Average Rating 60 | 6 11 17 23 48 60 81 94 94 95 94 101 On Entrance 56 | . 10 16 22 41 53 66 94 94 95 95 95 Avg Prop Armor Cover (%) 1 | . . 1 1 . . . . . . . 4 Naked Turns . | . . . . . . . . . . . . Heaviest Build 36 | 13 16 18 24 25 33 36 33 33 33 33 35 Greatest Support 67 | 26 31 47 59 29 43 52 52 52 52 52 67 Greatest Overweight (x) 1 | 1 . . . . . . . . . . 1 Average Overweight (x) . | . . . . . . . . . . . . Largest Inventory Capacity 3 | 2 2 2 2 2 2 3 3 3 3 3 3 Average Capacity 2 | 2 2 2 2 2 2 2 3 3 3 3 3 Most Carried 3 | 1 2 2 2 2 2 3 3 3 3 3 3 Average Carried 1 | . . 1 . 1 . 2 3 2 3 3 2 Final Capacity 3 | 2 2 2 2 2 2 3 3 3 3 3 3 Final Carried 3 | 1 2 2 2 1 1 3 3 3 3 3 3 Class Distribution -------------------- 57% | Scavenger-Sprinter 15% | Gunner 10% | Scavenger-Gunner 9% | Scavenger-Mutant 7% | Mutant Dominant Class ---------------- Mutant | -10/Materials Scavenger-Gunner | -10/Mines Gunner | -10/Exiles Scavenger-Mutant | -9/Mines Scavenger-Sprinter | -8/Materials Scavenger-Sprinter | -7/Factory Scavenger-Sprinter | -7/Lower Caves Scavenger-Sprinter | -7/Lower Caves Scavenger-Sprinter | -7/Data Miner Scavenger-Sprinter | -6/Proximity Caves Scavenger-Sprinter | -6/Factory Resources | -11 -10 -10 -10 -9 -8 -7 -7 -7 -7 -6 -6 ----------- Run | Yrd Mat Min Exi Min Mat Fac Low Low Dat Pro Fac Matter Collected 8944 | 263 833 156 436 154 1512 3641 233 258 . 350 1108 Remotely . | . . . . . . . . . . . . Salvage Created 17437 | 92 1351 149 . 176 3455 8201 357 490 . 1116 2050 Parts 1103 | 5 86 13 . 20 187 550 16 16 . 49 161 Haulers Intercepted 4 | . 1 . . . 1 1 . . . . 1 Recyclers Shooed 4 | . . . . . . 1 . . . . 3 Parts Field Recycled . | . . . . . . . . . . . . Retrieved Matter . | . . . . . . . . . . . . Parts Self-Destructed 81 | . . . . . . . 16 16 . 49 . Prevented . | . . . . . . . . . . . . Parts Restored . | . . . . . . . . . . . . Kills | -11 -10 -10 -10 -9 -8 -7 -7 -7 -7 -6 -6 ------- Run | Yrd Mat Min Exi Min Mat Fac Low Low Dat Pro Fac Combat Hostiles Destroyed 320 | . 28 8 3 10 52 149 12 8 . 18 32 Guns 310 | . 28 8 3 10 52 141 12 8 . 18 30 AOE 10 | . . . . . . 8 . . . . 2 Classes Destroyed 21 | 2 5 . 1 2 5 5 . . . . 1 Worker 15 | . 1 . . . 4 3 . . . . 7 Builder 16 | . . . . . 3 6 . . . . 7 Tunneler 1 | 1 . . . . . . . . . . . Hauler 4 | . 1 . . . 1 1 . . . . 1 Recycler 7 | 1 1 . . . 3 1 . . . . 1 Mechanic 4 | . . . . . . 4 . . . . . Drone 3 | . . . . . . . . . . . 3 Watcher 19 | . 3 . . . 5 5 . . . . 6 Swarmer 53 | . 6 6 . 3 8 14 9 . . 2 5 Cutter 3 | . . . . . . 3 . . . . . Grunt 147 | . 22 2 . 3 29 59 1 3 . 15 13 Brawler 13 | . . . . 1 1 11 . . . . . Duelist 11 | . . . . . 3 8 . . . . . Protector 13 | . . . . . 2 11 . . . . . Sentry 28 | . . . . . 8 14 1 1 . 1 3 Demolisher 1 | . . . . 1 . . . . . . . Specialist 2 | . . . . . . 2 . . . . . Hunter 20 | . . . . . . 12 1 3 . . 4 Programmer 17 | . . . . . . 13 . 1 . . 3 Heavy 4 | . . . . . 1 2 . . . . 1 Assembled 5 | . . . 3 2 . . . . . . . Best Kill Streak 18 | 2 4 3 3 4 17 18 9 3 . 7 7 Combat Bots Only 17 | . 4 3 3 4 10 17 9 3 . 7 6 Max Kills in Single Turn 4 | 1 2 1 1 2 3 4 3 1 . 2 3 Gunslinging 1 | . 1 . . . 1 1 . . . . 1 Exploded 4 | . . . . . . 4 . . . . 2 Melee . | . . . . . . . . . . . . Uniques/NPCs Destroyed 1 | . . . 1 . . . . . . . . 8R-AWN (-10/Exiles) Combat | -11 -10 -10 -10 -9 -8 -7 -7 -7 -7 -6 -6 -------- Run | Yrd Mat Min Exi Min Mat Fac Low Low Dat Pro Fac Hostile Shots Fired 1110 | . 80 22 47 6 113 498 36 15 . 43 250 Missed 493 | . 25 7 8 2 56 237 10 6 . 23 119 Hits 617 | . 55 15 39 4 57 261 26 9 . 20 131 Melee 4 | . . . 1 . . 3 . . . . . Projectile 613 | . 55 15 38 4 57 258 26 9 . 20 131 AOE 10 | . . . . . . 3 . . . . 7 Critical Strikes 66 | . 1 . 21 . 2 9 . . . 1 32 Actively Blocked 41 | . . . . . . 8 . . . 1 32 Damage Taken 9863 | . 583 154 734 40 943 3867 348 134 . 352 2708 Core 7349 | . 477 124 547 32 701 2872 274 77 . 258 1987 Absorbed by Shields . | . . . . . . . . . . . . Redirected to Core 6078 | . 341 98 513 26 564 2459 221 77 . 212 1567 Ignored by Resistances 143 | . . . . . 84 59 . . . . . Regen/Repaired (Parts) 3 | . 3 . . . . . . . . . . Core Remaining (%) 99 | 100 . . . 100 99 . . . . 100 . Volleys Fired 716 | 4 89 13 27 12 119 286 19 21 . 25 101 Largest 3 | 2 2 3 3 2 3 2 2 2 . 2 2 Hottest 115 | 60 46 69 69 60 115 60 60 60 . 60 60 Shots Fired 1459 | 8 178 39 79 24 239 573 37 42 . 50 190 Gun 1459 | 8 178 39 79 24 239 573 37 42 . 50 190 Cannon . | . . . . . . . . . . . . Launcher . | . . . . . . . . . . . . Special . | . . . . . . . . . . . . Kinetic 1441 | 4 178 39 79 24 237 573 37 42 . 50 178 Thermal . | . . . . . . . . . . . . Explosive . | . . . . . . . . . . . . Electromagnetic 18 | 4 . . . . 2 . . . . . 12 Robot Hit Streak 52 | 3 14 3 47 11 25 52 14 31 . 26 32 Robot Miss Streak 7 | 1 7 4 4 3 2 2 1 1 . 2 5 Penetration Max 2 | . . . . 2 2 2 2 1 . 2 2 Secondary Targets 37 | . 3 . 1 1 4 18 2 . . 3 5 Max Gunslinging Chain 1 | . 1 . 1 1 1 1 1 . . 1 1 Shots Hit Robots 1076 | 5 97 16 67 15 202 449 28 35 . 42 120 Core Hits 626 | 3 41 9 16 11 107 284 18 13 . 34 90 Critical Kills 227 | . . . . 6 38 123 6 5 . 14 35 Critical Parts Destroyed 276 | . 1 . . 2 66 142 7 9 . 14 35 Critical Strikes 515 | . 1 . 1 9 106 273 13 14 . 28 70 Destroy 515 | . 1 . 1 9 106 273 13 14 . 28 70 Melee Attacks . | . . . . . . . . . . . . Impact . | . . . . . . . . . . . . Slashing . | . . . . . . . . . . . . Piercing . | . . . . . . . . . . . . Sneak Attacks . | . . . . . . . . . . . . Combat Hostiles . | . . . . . . . . . . . . Follow-up Attacks . | . . . . . . . . . . . . Damage Inflicted 26522 | 61 1549 285 1040 296 4670 12633 716 670 . 1020 3582 Guns 24666 | 61 1549 285 1040 296 4607 11254 716 670 . 1020 3168 Cannons . | . . . . . . . . . . . . Explosions 1856 | . . . . . 63 1379 . . . . 414 Melee . | . . . . . . . . . . . . Ramming . | . . . . . . . . . . . . Kinetic 24432 | 7 1549 285 1040 296 4561 11254 716 670 . 1020 3034 Thermal 959 | . . . . . 63 896 . . . . . Explosive 897 | . . . . . . 483 . . . . 414 Electromagnetic 234 | 54 . . . . 46 . . . . . 134 Impact . | . . . . . . . . . . . . Slashing . | . . . . . . . . . . . . Piercing . | . . . . . . . . . . . . Highest Corruption 4 | . . . . . . 3 3 3 3 3 4 Average Corruption 2 | . . . . . . 1 3 3 3 3 2 Corruption Purged . | . . . . . . . . . . . . Corruption Blocked . | . . . . . . . . . . . . Effects 50 | . . . . . . 19 7 8 1 6 9 Message Errors 11 | . . . . . . 4 . 3 . . 4 Matter Fused 12 | . . . . . . 4 2 1 1 3 1 Heat Flow Errors 6 | . . . . . . 2 3 . . . 1 Energy Discharges 4 | . . . . . . . . 2 . . 2 Parts Rejected 3 | . . . . . . 1 . . . 2 . Data Loss (minor) 6 | . . . . . . 3 1 . . 1 1 Data Loss (major) 4 | . . . . . . 2 . 2 . . . Misfires 2 | . . . . . . 2 . . . . . Weapon Failures 2 | . . . . . . 1 1 . . . . Overload Shots . | . . . . . . . . . . . . Overflow Damage 126 | . . . . . . 120 . . . . 6 Projectiles . | . . . . . . . . . . . . Explosions 126 | . . . . . . 120 . . . . 6 Melee . | . . . . . . . . . . . . Knockbacks . | . . . . . . . . . . . . Impact . | . . . . . . . . . . . . Kinetic . | . . . . . . . . . . . . Secondary . | . . . . . . . . . . . . Self-Inflicted Damage 26 | . . . . . 26 . . . . . . Shots 1 | . . . . . 1 . . . . . . Rammed . | . . . . . . . . . . . . Targets Rammed . | . . . . . . . . . . . . Kicked . | . . . . . . . . . . . . Crushed . | . . . . . . . . . . . . Highest Temperature 271 | . 20 20 18 8 243 221 271 . . . 270 Average Temperature 41 | . 6 8 6 4 45 38 131 . . . 94 Received Heat Transfer 2130 | . 279 36 18 . 414 753 75 54 . 84 417 Siege Activations . | . . . . . . . . . . . . Martial Activations . | . . . . . . . . . . . . Shielding Activations . | . . . . . . . . . . . . Robots Disrupted 1 | . . . . . . . . . . . 1 Combat Hostiles . | . . . . . . . . . . . . Robots Corrupted . | . . . . . . . . . . . . Combat Hostiles . | . . . . . . . . . . . . Parts Fried . | . . . . . . . . . . . . Impact Corruptions . | . . . . . . . . . . . . Robots Melted . | . . . . . . . . . . . . Combat Hostiles . | . . . . . . . . . . . . Parts Melted 3 | . . . . . . 1 . . . 2 . Heat Transferred 575 | . . . . . 50 525 . . . . . Parts Sabotaged . | . . . . . . . . . . . . Parts Stolen . | . . . . . . . . . . . . Parts Stripped . | . . . . . . . . . . . . Power Chain Reactions 1 | . . . . . 1 . . . . . . Alert | -11 -10 -10 -10 -9 -8 -7 -7 -7 -7 -6 -6 ------- Run | Yrd Mat Min Exi Min Mat Fac Low Low Dat Pro Fac Maximum Alert Level 5 | . 2 1 . . 5 5 . . . . 3 Low Security (%) 19 | 100 56 34 . 100 8 . . . . . 3 Level 1 13 | . 17 65 . . 9 . . . . . 28 Level 2 24 | . 25 . . . 18 34 . . . . 23 Level 3 19 | . . . . . 17 25 . . . . 44 Level 4 7 | . . . . . 39 5 . . . . . Level 5 5 | . . . . . 5 12 . . . . . High Security 9 | . . . . . . 22 . . . . . Max Security . | . . . . . . . . . . . . Sterilizations 2 | . . . . . 1 1 . . . . . Peak Influence 3877 | 5 550 267 . 153 1640 3877 . . . . 904 Initial 740 | . . 202 . . 43 740 . . . . 163 Average 828 | . 222 207 . 62 926 1375 . . . . 575 Influence Increases 9773 | 10 903 205 . 233 1947 4455 300 180 . 390 1150 Destroy 0b10 Robot/C 6020 | . 560 160 . 160 1000 2780 240 160 . 360 600 Destroy 0b10 Robot/NC 395 | 10 30 . . . 90 155 . . . . 110 Destroy Leader 1186 | . 138 30 . 40 222 532 30 20 . 30 144 Allied During Kill 38 | . . . . . . 27 . . . . 11 Successful Hack 206 | . 15 . . . 49 102 . . . . 40 Select Force Hacks 350 | . 110 . . . 210 30 . . . . . Disable Machine 600 | . . . . 30 165 300 . . . . 105 Anti-Garrison Action 150 | . . . . . . 150 . . . . . Destroy Structure 258 | . 5 . . 3 91 124 . . . . 35 Partial Spotted 90 | . . . . . 60 15 . . . . 15 Lose Combat Pursuer 480 | . 45 15 . . 60 240 30 . . . 90 Influence Decreases 8952 | 10 383 556 169 120 432 2206 1566 657 2134 130 589 Entered New Map 5609 | . . 318 169 . 70 888 1436 497 2134 . 97 Time Decay 2573 | 10 383 238 . 120 362 618 130 160 . 130 422 Lost Part 20 | . . . . . . . . . . . 20 Lost Ally 150 | . . . . . . 100 . . . . 50 Purge Threat 600 | . . . . . . 600 . . . . . Squads Dispatched 72 | . 10 . . 1 7 43 . . . . 11 Investigation 20 | . 9 . . 1 4 5 . . . . 1 Extermination 9 | . . . . . . 6 . . . . 3 Reinforcement 11 | . 1 . . . 1 5 . . . . 4 Assault 21 | . . . . . 2 19 . . . . . Garrison 11 | . . . . . . 8 . . . . 3 Intercept . | . . . . . . . . . . . . Searches Triggered . | . . . . . . . . . . . . Unchained Authorized 1 | . . . . . . . . . . . 1 Data Miner Redirects 1 | . . . . . . . . . . . 1 Construction Impeded 1 | . . . . . . . . . . . 1 Haulers Reinforced 3 | . . . . . . 1 . . . . 2 Active Scanning Responses . | . . . . . . . . . . . . Cargo Convoy Interrupts 2 | . . . . . . 1 . . . . 1 Stealth | -11 -10 -10 -10 -9 -8 -7 -7 -7 -7 -6 -6 --------- Run | Yrd Mat Min Exi Min Mat Fac Low Low Dat Pro Fac Distress Signals 8 | . 2 . . . 2 3 . . . . 1 Communications Jammed . | . . . . . . . . . . . . Distress Signals . | . . . . . . . . . . . . Times Spotted 411 | . 41 9 7 8 63 180 13 3 . 17 70 Peak Tracking Total 15 | . 4 3 9 3 8 11 4 3 . 7 15 Tactical Retreats 24 | . 2 1 1 . 4 9 1 . . . 6 Traps | -11 -10 -10 -10 -9 -8 -7 -7 -7 -7 -6 -6 ------- Run | Yrd Mat Min Exi Min Mat Fac Low Low Dat Pro Fac Traps Triggered 10 | . 3 . . . . 1 . . . . 6 Indirectly . | . . . . . . . . . . . . Trap Hack Attempts . | . . . . . . . . . . . . Triggered . | . . . . . . . . . . . . Disarmed . | . . . . . . . . . . . . Reprogrammed . | . . . . . . . . . . . . Reused . | . . . . . . . . . . . . Traps Extracted . | . . . . . . . . . . . . Installed . | . . . . . . . . . . . . Triggered . | . . . . . . . . . . . . Machines | -11 -10 -10 -10 -9 -8 -7 -7 -7 -7 -6 -6 ---------- Run | Yrd Mat Min Exi Min Mat Fac Low Low Dat Pro Fac Machines Disabled 47 | . 1 . 3 2 11 22 . . . 1 7 Max in Single Turn 6 | . 1 . 1 1 1 6 . . . 1 2 Garrison Access 1 | . . . . . . 1 . . . . . Machines Repaired . | . . . . . . . . . . . . Machines Dismantled . | . . . . . . . . . . . . Machines Sabotaged 4 | . 1 . . . 3 . . . . . . Overloaded Fab Kills . | . . . . . . . . . . . . Hacking | -11 -10 -10 -10 -9 -8 -7 -7 -7 -7 -6 -6 --------- Run | Yrd Mat Min Exi Min Mat Fac Low Low Dat Pro Fac Machines Accessed 60 | . 10 1 1 1 11 24 . 2 2 1 7 Terminals 34 | . 7 . . . 6 14 . 1 . 1 5 Fabricators 6 | . . . . . . 5 . . . . 1 Repair Stations 2 | . 1 . . . 1 . . . . . . Recycling Units 5 | . 2 . . . 2 1 . . . . . Scanalyzers 5 | . . . . . 2 3 . . . . . Garrison Access 2 | . . . . . . 1 . . . . 1 Total Hacks 173 | . 24 1 1 1 29 68 . 2 14 7 26 Successful 103 | . 11 1 1 1 17 37 . 2 14 7 12 Failed 69 | . 13 . . . 12 30 . . . . 14 Catastrophic 6 | . . . . . 2 4 . . . . . Database Lockouts 1 | . . . . . . 1 . . . . . Manual 106 | . 24 . 1 . 17 43 . . . . 21 Terminals 113 | . 20 . . . 20 47 . 1 . 7 18 Fabricators 16 | . . . . . . 13 . . . . 3 Repair Stations 2 | . 1 . . . 1 . . . . . . Recycling Units 6 | . 3 . . . 2 1 . . . . . Scanalyzers 12 | . . . . . 6 6 . . . . . Garrison Access 6 | . . . . . . 1 . . . . 5 Terminal Hacks 49 | . 2 1 1 1 4 15 . 2 14 7 2 Record 8 | . . . . . . . . 1 . 7 . Part Schematic 9 | . . . . . . 1 . . 8 . . Robot Schematic 5 | . . . . . . 2 . . 3 . . Robot Analysis 5 | . 2 . . . 2 1 . . . . . Prototype ID Bank 4 | . . . . . 1 . . . 3 . . Open Door 3 | . . 1 . 1 . . . 1 . . . Branch Access Points 1 | . . . . . . 1 . . . . . Terminal Index 2 | . . . . . 1 1 . . . . . Fabricator Index 1 | . . . . . . . . . . . 1 Garrison Index 1 | . . . . . . 1 . . . . . Alert Level 3 | . . . . . . 2 . . . . 1 Unreport Threat 4 | . . . . . . 4 . . . . . Locate Traps 1 | . . . . . . 1 . . . . . Hauler Manifests 1 | . . . . . . 1 . . . . . Proto ID Catalog 1 | . . . 1 . . . . . . . . Fabricator Hacks 6 | . . . . . . 6 . . . . . Network Status 1 | . . . . . . 1 . . . . . Load Schematic 2 | . . . . . . 2 . . . . . Build 3 | . . . . . . 3 . . . . . Repair Station Hacks . | . . . . . . . . . . . . Recycling Unit Hacks . | . . . . . . . . . . . . Scanalyzer 7 | . . . . . 4 3 . . . . . Insert Component 1 | . . . . . . 1 . . . . . Analyze 1 | . . . . . . 1 . . . . . Retrieve Study 5 | . . . . . 4 1 . . . . . Garrison Access Hacks . | . . . . . . . . . . . . Unauthorized Hacks 41 | . 9 . . . 9 13 . . . . 10 Terminals 29 | . 6 . . . 6 8 . . . . 9 Track 2 | . . . . . . . . . . . 2 Assimilate 2 | . . . . . . 2 . . . . . Botnet 13 | . 2 . . . 2 5 . . . . 4 Operators 3 | . 1 . . . . 1 . . . . 1 Skim 2 | . . . . . . . . . . . 2 Sabotage 6 | . 3 . . . 3 . . . . . . Search 1 | . . . . . 1 . . . . . . Fabricators 3 | . . . . . . 3 . . . . . Prioritize 1 | . . . . . . 1 . . . . . Liberate 1 | . . . . . . 1 . . . . . Haulers 1 | . . . . . . 1 . . . . . Repair Stations 2 | . 1 . . . 1 . . . . . . Patch 2 | . 1 . . . 1 . . . . . . Recycling Units 5 | . 2 . . . 2 1 . . . . . Tunnel 5 | . 2 . . . 2 1 . . . . . Scanalyzers . | . . . . . . . . . . . . Garrison Access 2 | . . . . . . 1 . . . . 1 Reprogram 2 | . . . . . . 1 . . . . 1 Data Cores Recovered . | . . . . . . . . . . . . Used . | . . . . . . . . . . . . Hacking Detections 35 | . 5 . . . 6 18 . . . . 6 Full Trace Events 9 | . 4 . . . 2 3 . . . . . Feedback Events . | . . . . . . . . . . . . Feedback Blocked . | . . . . . . . . . . . . Robot Schematics Acquired 5 | . . . . . . 2 . . 3 . . Robots Built 4 | . . . . . . 4 . . . . . Authchips . | . . . . . . . . . . . . Time 67 | . . . . . . 67 . . . . . Total Robot Build Rating 16 | . . . . . . 16 . . . . . Part Schematics Acquired 10 | . . . . . . 2 . . 8 . . Parts Built 3 | . . . . . . 3 . . . . . Authchips . | . . . . . . . . . . . . Time 258 | . . . . . . 258 . . . . . Total Part Build Rating 17 | . . . . . . 17 . . . . . Part Studies Acquired 5 | . . . . . 4 1 . . . . . Parts Repaired . | . . . . . . . . . . . . Time . | . . . . . . . . . . . . Parts Recycled . | . . . . . . . . . . . . Recycled Matter . | . . . . . . . . . . . . Retrieved Matter . | . . . . . . . . . . . . Retrieved Components . | . . . . . . . . . . . . Parts Scanalyzed 1 | . . . . . . 1 . . . . . Part Schematics Acquired 1 | . . . . . . 1 . . . . . Parts Damaged . | . . . . . . . . . . . . Bothacking | -11 -10 -10 -10 -9 -8 -7 -7 -7 -7 -6 -6 ------------ Run | Yrd Mat Min Exi Min Mat Fac Low Low Dat Pro Fac Used RIF Installer . | . . . . . . . . . . . . Robots Hacked . | . . . . . . . . . . . . Non-combat . | . . . . . . . . . . . . Combat . | . . . . . . . . . . . . Robot Hacks Applied . | . . . . . . . . . . . . Relay Couplers Released . | . . . . . . . . . . . . Fabnet Peak Effective % . | . . . . . . . . . . . . Robots Rewired 2 | . . . . . . . . . . . 2 Allies Hacked 1 | . . . . . . 1 . . . . . Hacks Repelled . | . . . . . . . . . . . . Allies | -11 -10 -10 -10 -9 -8 -7 -7 -7 -7 -6 -6 -------- Run | Yrd Mat Min Exi Min Mat Fac Low Low Dat Pro Fac Total Allies 14 | . . 3 . . . 7 . . . . 4 Largest Group 4 | . . 3 3 1 . 4 . . . . 4 Highest-Rated Group 109 | . . 40 40 8 . 48 . . . . 109 Highest-Rated Ally 32 | . . 16 16 8 . 26 . . . . 32 Total Orders 10 | . . 1 4 . . 5 . . . . . STAY 7 | . . 1 3 . . 3 . . . . . FOLLOW 3 | . . . 1 . . 2 . . . . . Ally Attacks 76 | . . . 44 5 . 15 . . . . 12 Total Damage 726 | . . . 292 12 . 212 . . . . 210 Kills 4 | . . . 2 . . 1 . . . . 1 Allies Corrupted . | . . . . . . . . . . . . Allies Melted . | . . . . . . . . . . . . Intel | -11 -10 -10 -10 -9 -8 -7 -7 -7 -7 -6 -6 ------- Run | Yrd Mat Min Exi Min Mat Fac Low Low Dat Pro Fac Active Infowar (turns) 1540 | 25 1105 410 . . . . . . . . . Terrain 75 | 25 50 . . . . . . . . . . Seismic 1528 | 13 1105 410 . . . . . . . . . Robot Analysis Total 5 | . 2 . . . 2 1 . . . . . Derelict Logs Recovered 9 | . . 2 . 2 . . 2 2 . 1 . Drone Launches . | . . . . . . . . . . . . Drone Recoveries . | . . . . . . . . . . . . Exploration | -11 -10 -10 -10 -9 -8 -7 -7 -7 -7 -6 -6 ------------- Run | Yrd Mat Min Exi Min Mat Fac Low Low Dat Pro Fac Turns Passed 8821 | 68 1105 504 1351 330 838 2678 261 322 18 326 1020 Spaces Moved 15077 | 51 1455 684 818 744 1372 4433 899 1123 78 1071 2349 Core 18 | 9 . . . . . . . . . . 9 Treads 800 | . . 68 732 . . . . . . . . Legs 1 | . . . 1 . . . . . . . . Wheels 509 | 42 467 . . . . . . . . . . Hover . | . . . . . . . . . . . . Flight 13749 | . 988 616 85 744 1372 4433 899 1123 78 1071 2340 Fastest Speed 5 | 50 34 34 37 34 29 23 23 23 23 23 5 Average Speed 35 | 85 51 46 144 36 31 24 23 23 23 23 23 Slowest Speed 157 | 100 90 157 157 37 34 29 23 23 23 23 100 Overloaded Moves 69 | . . . . . . . . . . . 69 Propulsion Burnouts . | . . . . . . . . . . . . Robots Hopped 140 | . 9 7 . 8 15 46 1 5 . . 49 Potential Cave-ins . | . . . . . . . . . . . . Cave-ins Triggered . | . . . . . . . . . . . . Exploration Rate (%) 79 | 3 97 96 91 98 91 72 93 96 68 99 50 Regions Visited 11 Branch Regions 7 Pre-discovered Areas 8 | . 2 2 . 1 2 1 . . . . . Known Exits Taken 6 | . . . . . 1 1 1 1 1 1 . Unknown Exits Taken 5 | 1 1 1 1 1 . . . . . . . Scrap Searched 14 | . . 1 . 2 . . 3 3 . 5 . Spaces Dug 25 | . . . . . . 17 . . . . 8 Terrain Destroyed 347 | . . . . 5 124 160 2 9 . 6 41 Melee . | . . . . . . . . . . . . Projectile 143 | . . . . 5 81 36 2 6 . 3 10 AOE 163 | . . . . . 39 105 . . . . 19 Terrain Rammed . | . . . . . . . . . . . . Walls Destroyed . | . . . . . . . . . . . . Machines Disabled . | . . . . . . . . . . . . Actions | -11 -10 -10 -10 -9 -8 -7 -7 -7 -7 -6 -6 --------- Run | Yrd Mat Min Exi Min Mat Fac Low Low Dat Pro Fac Total 17426 | 63 1650 845 946 777 1609 5616 929 1155 77 1119 2640 Wait 1172 | . 66 135 54 11 72 703 . . . 2 129 Move 14795 | 50 1439 669 817 727 1342 4341 896 1112 77 1070 2255 Hop 131 | . 6 7 . 8 14 45 1 5 . . 45 Pick Up 42 | 1 7 1 7 1 3 17 1 2 . 1 1 Fast Attach 27 | 8 3 2 5 1 2 1 . . . 2 3 Attach 8 | . . . . 2 2 3 . . . . 1 Detach 3 | . . 2 . . . 1 . . . . . Swap 34 | . 7 1 4 . 3 13 . . . . 6 Drop 53 | . 8 3 15 . 2 17 1 2 . 1 4 Fire 716 | 4 89 13 27 12 119 286 19 21 . 25 101 Melee . | . . . . . . . . . . . . Ram . | . . . . . . . . . . . . Kick . | . . . . . . . . . . . . Crush . | . . . . . . . . . . . . Escape Stasis 9 | . . . . . . . . . . . 9 Rewire 18 | . . . . . . . . . . . 18 Trap . | . . . . . . . . . . . . Miscellaneous 418 | . 25 12 17 15 50 189 11 13 . 18 68 Route ------- -11/Scrapyard -10/Materials (discovered 4 exits: [*Mat x3] / *Min) -10/Mines (discovered 3 exits: [*Mat x2] / *Exi) -10/Exiles (discovered 2 exits: *Min x2) -9/Mines (discovered 2 exits: *Mat x2) -8/Materials (discovered 3 exits: *Fac x3) -7/Factory (discovered 4 exits: *Fac / *Sto / *Low x2) -7/Lower Caves -7/Lower Caves (discovered 2 exits: *Fac / *Dat) -7/Data Miner -6/Proximity Caves -6/Factory (discovered 3 exits: [*Fac] / Low x2) History --------- Turn | Location | Event 1 | -11/Scrapyard | Upgraded with Power slot (x1) 1 | -11/Scrapyard | Upgraded with Propulsion slot (x1) 1 | -11/Scrapyard | Upgraded with Utility slot (x1) 1 | -11/Scrapyard | Upgraded with Weapon slot (x1) 6 | -11/Scrapyard | Discovered new exit (range 15) 69 | -11/Scrapyard | Entered Materials 160 | -10/Materials | Discovered new exit (range 16) 311 | -10/Materials | Build established: Mutant 508 | -10/Materials | Discovered new exit (range 3) 626 | -10/Materials | Reached level 2 629 | -10/Materials | Upgraded with Propulsion slot (x1) 654 | -10/Materials | Discovered new exit (range 15) 835 | -10/Materials | Discovered new exit (range 4) 887 | -10/Materials | Reached level 3 899 | -10/Materials | Upgraded with Utility slot (x1) 899 | -10/Materials | Upgraded with Weapon slot (x1) 930 | -10/Materials | Build established: Scavenger-Mutant 1174 | -10/Materials | Entered Mines 1176 | -10/Mines | Reached level 4 1223 | -10/Mines | Discovered new exit (range 5) 1229 | -10/Mines | Learned location of Storage (-7) 1243 | -10/Mines | Met a Derelict who couldn't figure out how to use a Trap Extractor 1368 | -10/Mines | Discovered new exit (range 6) 1370 | -10/Mines | Deemed a non-threat by the Exiles lab entrance 1370 | -10/Mines | Discovered new exit (range 5) 1384 | -10/Mines | Build established: Scavenger-Gunner 1454 | -10/Mines | Learned Materials stockpile data 1456 | -10/Mines | Found a hidden stash of uninstalled traps 1511 | -10/Mines | Assisted by bots powering up and referring to "LRC-V3" 1678 | -10/Mines | Entered Exiles 1678 | -10/Exiles | Accompanied by 3 allies 1715 | -10/Exiles | Met 8R-AWN 1744 | -10/Exiles | Met EX-HEX 1806 | -10/Exiles | Met EX-DEC 1852 | -10/Exiles | Build established: Gunner 1971 | -10/Exiles | Met EX-BIN 1998 | -10/Exiles | Aligned with FarCom system 2000 | -10/Exiles | Given EX-Vault access code 2036 | -10/Exiles | Opened EX-Vault 2076 | -10/Exiles | Warned to stay clear of 0b10 Research branches 2178 | -10/Exiles | Visited The Gauntlet 2618 | -10/Exiles | Discovered new exit (range 14) 2770 | -10/Exiles | Attacked by the Exiles 2888 | -10/Exiles | Core integrity fell below 50% 2906 | -10/Exiles | Core integrity fell below 20% 2910 | -10/Exiles | Allies destroyed 8R-AWN 2930 | -10/Exiles | Found Prototype Ballistic Gun 2930 | -10/Exiles | Identified 8R-AWN's Boregun 2933 | -10/Exiles | Found 8R-AWN's Boregun 2972 | -10/Exiles | Found Prototype Processor 2972 | -10/Exiles | Identified Exp. Targeting Computer 3005 | -10/Exiles | Discovered new exit (range 10) 3029 | -10/Exiles | Entered Mines 3029 | -9/Mines | Accompanied by 1 ally 3031 | -9/Mines | Reached level 5 3032 | -9/Mines | Upgraded with Utility slot (x1) 3050 | -9/Mines | Assembled infested the area 3064 | -9/Mines | Learned Materials garrison access intel 3091 | -9/Mines | Met a Derelict shopkeep closing up shop 3144 | -9/Mines | Discovered new exit (range 8) 3151 | -9/Mines | Received a Rocket Launcher from a helpful Derelict 3224 | -9/Mines | Build established: Scavenger-Mutant 3263 | -9/Mines | Discovered new exit (range 10) 3359 | -9/Mines | Entered Materials 3361 | -8/Materials | Loaded intel: 1 garrison access location 3361 | -8/Materials | Reached level 6 3396 | -8/Materials | Reached level 7 3398 | -8/Materials | Upgraded with Utility slot (x1) 3464 | -8/Materials | Destroyed 7 combat bots 3522 | -8/Materials | Reached level 8 3547 | -8/Materials | Upgraded with Utility slot (x1) 3590 | -8/Materials | Discovered new exit (range 14) 3610 | -8/Materials | Build established: Scavenger-Gunner 3669 | -8/Materials | Reached level 9 3746 | -8/Materials | Destroyed 10 combat bots 3759 | -8/Materials | First assault squad dispatched 3785 | -8/Materials | Reached level 10 3845 | -8/Materials | Destroyed 7 combat bots 3877 | -8/Materials | Reached level 11 3914 | -8/Materials | Discovered new exit (range 15) 3919 | -8/Materials | Destroyed 7 combat bots 3929 | -8/Materials | Upgraded with Propulsion slot (x1) 3929 | -8/Materials | Upgraded with Utility slot (x1) 4008 | -8/Materials | Build established: Scavenger-Sprinter 4088 | -8/Materials | Sterilization system engaged 4088 | -8/Materials | Non-combat units ordered to evacuate 4101 | -8/Materials | Discovered new exit (range 14) 4134 | -8/Materials | Reached level 12 4188 | -8/Materials | Combat units ordered to evacuate 4190 | -8/Materials | Identified exit to Factory 4197 | -8/Materials | Entered Factory 4199 | -7/Factory | Reached level 13 4271 | -7/Factory | Discovered new exit (range 16) 4409 | -7/Factory | Identified exit to Lower Caves 4421 | -7/Factory | Reached level 14 4504 | -7/Factory | Discovered new exit (range 12) 4514 | -7/Factory | Identified exit to Storage 4629 | -7/Factory | Discovered exit to Lower Caves (range 9) 4650 | -7/Factory | Discovered new exit (range 8) 4652 | -7/Factory | Identified exit to Factory 4997 | -7/Factory | First assault squad dispatched 5137 | -7/Factory | Reached level 15 5166 | -7/Factory | Fabricated S-27 Virus? 5188 | -7/Factory | Fabricated Imp. Shock Absorption System? 5392 | -7/Factory | Garrison activated, responded to threat 5404 | -7/Factory | Cargo convoy interrupted 5444 | -7/Factory | Lost 4 allies 5456 | -7/Factory | Destroyed 10 combat bots 5615 | -7/Factory | Destroyed 10 combat bots 5627 | -7/Factory | Reached level 16 5629 | -7/Factory | Upgraded with Propulsion slot (x1) 5709 | -7/Factory | Core integrity fell below 50% 5780 | -7/Factory | Central database locked down 5804 | -7/Factory | Core integrity fell below 20% 5834 | -7/Factory | Destroyed 9 combat bots 5929 | -7/Factory | Garrison activated, responded to threat 6062 | -7/Factory | Fabricated Cld. Cesium-ion Thruster (x1) 6132 | -7/Factory | Reached level 17 6143 | -7/Factory | Upgraded with Utility slot (x1) 6263 | -7/Factory | High security lockdown imminent 6343 | -7/Factory | High security lockdown engaged 6352 | -7/Factory | Destroyed 9 combat bots 6391 | -7/Factory | Garrison activated, responded to threat 6460 | -7/Factory | Destroyed 11 combat bots 6549 | -7/Factory | Destroyed 9 combat bots 6609 | -7/Factory | Reached level 18 6673 | -7/Factory | Sterilization system engaged 6673 | -7/Factory | Non-combat units ordered to evacuate 6698 | -7/Factory | Destroyed 17 combat bots 6773 | -7/Factory | Combat units ordered to evacuate 6777 | -7/Factory | Destroyed 12 combat bots 6875 | -7/Factory | Entered Lower Caves 6936 | -7/Lower Caves | Learned Factory terminal intel 6940 | -7/Lower Caves | Destroyed 9 combat bots 6942 | -7/Lower Caves | Encountered a Warlord checkpoint 6955 | -7/Lower Caves | Attracted the attention of an 0b10 checkpoint 7007 | -7/Lower Caves | Discovered new exit (range 14) 7010 | -7/Lower Caves | Identified exit to Lower Caves 7051 | -7/Lower Caves | Learned Factory security intel 7136 | -7/Lower Caves | Entered another Lower Caves area 7137 | -7/Lower Caves | Discovered exit to Factory (range 7) 7144 | -7/Lower Caves | Learned Factory terminal intel 7162 | -7/Lower Caves | Encountered a Warlord checkpoint 7332 | -7/Lower Caves | Discovered new exit (range 13) 7424 | -7/Lower Caves | Identified exit to Data Miner 7458 | -7/Lower Caves | Entered Data Miner 7458 | -7/Data Miner | Discovered new exit (range 6) 7463 | -7/Data Miner | Met Data Miner 7471 | -7/Data Miner | Received God Mode back door access code from Data Miner 7476 | -7/Data Miner | Identified exit to Proximity Caves 7476 | -7/Data Miner | Entered Proximity Caves 7478 | -6/Proximity Caves | Reached level 19 7672 | -6/Proximity Caves | Attracted the attention of an 0b10 base 7710 | -6/Proximity Caves | Learned location of 1 exit from Proximity Caves 7710 | -6/Proximity Caves | Learned location of 2 exits from Lower Caves 7710 | -6/Proximity Caves | Learned Extension trap positions 7715 | -6/Proximity Caves | Destroyed 7 combat bots 7802 | -6/Proximity Caves | Entered Factory 7803 | -6/Factory | Identified exit to Lower Caves 7805 | -6/Factory | Loaded intel: 26 terminal locations 7842 | -6/Factory | Reached level 20 7976 | -6/Factory | Unchained authorized (QV-33N) 8092 | -6/Factory | Upgraded with Utility slot (x1) 8200 | -6/Factory | Garrison activated, responded to threat 8291 | -6/Factory | Discovered new exit (range 13) 8319 | -6/Factory | Core integrity fell below 50% 8323 | -6/Factory | Core integrity fell below 20% 8669 | -6/Factory | Cargo convoy interrupted 8816 | -6/Factory | Incoming assault squad redirected 8822 | -6/Factory | Destroyed by Thermal Drone with Thermal Shotgun Last Messages --------------- 08810_ U-05 Engineer destroyed. 08810_ K-01 Serf destroyed. 08814_ Held in stasis. 08814_ Antisys Drone suffers critical hit (Destroy). Antisys Drone disintegrates. 08815_ HV Slug penetrates Antisys Drone. 08815_ Antisys Drone suffers critical hit (Destroy). 08815_ Destroyed Prototype Energy Gun. 08815_ HV Slug penetrates Wall. 08816_ ALERT: Higher priority target reported, redirecting assault. Antisys Drone disintegrates. 08818_ Held in stasis. 08818_ Stasis Drone suffers critical hit (Destroy). Stasis Drone disintegrates. 08820_ HV Slug penetrates Antisys Drone. 08820_ HV Slug penetrates Wall. Map ----- +----------------------------------------------------+ | ????????????????????????????????????# #????# | | ????????????????????????????????????# #????######+ | | ######################??????????????# #???####### | | # #??????????????# #???# # | | """ !!=# #??????????????# #???# + | | """ !! # #??#############/##### # | | """ != # ! #??# # # # | | # #??# # [ """ # # | | ]# #??# ! # !%|""" + #" | | ####+#### #??# [ # * R" # #" | | + #??# # """ # #" | | #### # #??# ==! #%%!k"" # #" | | ???# # #??# =!! # %k # + | | ???# # #??# =!! # = # # | | ???# # #??# # # # | | ???# #+#####+#############+######u############ | | ???# t | | ???# nn k | | ???# " | | ####+## """"""""" " | | # nn n """"""""" | | " ! # nn######### """"""""" | | " # #???????# R""""""""" | | " # k #???????# """"""""" | | [ # #???????# """ """"" ! | | " = # @#???????# | | "*! # #???????# | | " # #???????# ! | | # ######### #?????? ######## ### | | #+##### h # # #???? " # ?# ^ =# | | !% *h # # #?? " " # # *# | | = = # + # " " " # " " # + | | # # + " " " # " " + # | | # # # " " " # " " # # " | | # # #?? " " # " " # # " | | ############# ##### #?? " " # " " ?# # " | | ????????????# #???# #? # " " ?# # | | ????????????# #???# #? # " "??# # " | | ????????????# #???# # # " "??# # " | | ????????????# #???# # ! # " ???# # " | | ????????????#########???# + # ???# # | | ??????????????????????###+###########????# ### | | ??????????????????????# #??????########/##### | | ??????????????????????#""" ###??### | | ??????????????????????#""" ] ## # | | ??????????????????????#""" ## "" # """" """" | | ??????????????????????# ## "" # """" """" | | ??????????????????????# ## """ # """" """" | | ??????????????????????######### """ # """" """" | | ??????????????????????????????# """ # """" """" | +----------------------------------------------------+ Best States ------------- Heat Dissipation 79 Energy Generation 25 Energy Capacity 275 Matter Stores 300 Matter Capacity 300 Sight Range 16 Robot Scan Range 20 Terrain Scan Range 16 Terrain Scan Density 10 Additional Mass Support 12 Armor Coverage 300 Resistance: TH 10 Weapon Cycling 25 Evasion (%) 75 Targeting Accuracy 12 Core Analysis 6 Armor Integrity Analysis 30 Recoil Reduction 2 Salvage Targeting 2 Offensive Hacking 15 Defensive Hacking 10 Item Schematics ----------------- Drone Bay | -7/Factory | Hacked Cld. Cesium-ion Thruster | -7/Factory | Scanalyzed Combat Drone Bay | -7/Data Miner | Free Gravity Neutralizer | -7/Data Miner | Free Gyrokinetic Inverter | -7/Data Miner | Free Shock Maul | -7/Data Miner | Free Lgt. Regenerative Plating | -7/Data Miner | Free Mni. Drone Bay | -7/Data Miner | Free Hvy. Phase Cannon | -7/Data Miner | Free Antimatter Reactor | -7/Data Miner | Free Robot Schematics ------------------ S-27 Virus | -7/Factory | Hacked R-06 Scavenger | -7/Factory | Hacked M-14 Sweeper | -7/Data Miner | Free Y-54 Guardian | -7/Data Miner | Free A-15 Conveyor | -7/Data Miner | Free Fabricated ------------ S-27 Virus | x4 | -7/Factory | Preloaded Imp. Shock Absorption System | x2 | -7/Factory | Preloaded Cld. Cesium-ion Thruster | x1 | -7/Factory Repaired ---------- Nothing Studied --------- Flight Unit | -8/Materials | Hacked Lgt. Nuclear Core | -8/Materials | Hacked Lgt. Ion Engine | -8/Materials | Hacked Cesium-ion Thruster | -8/Materials | Hacked VTOL Module | -7/Factory | Hacked Alien Tech Used ----------------- None Achievements -------------- DATA ERROR: Steam Global Achievement% Deadly Precision Express Service Heavy Suspicion I Laugh At Your Crits Into The Furnace Item+ Jackpot Network Effect Organ Harvest Overwhelming Sixth Sense The Better Part Of Valor Tune-up Who Guards The Bodyguard? Challenges ------------ None RPGLIKE | -11 -10 -10 -10 -9 -8 -7 -7 -7 -7 -6 -6 --------- Run | Yrd Mat Min Exi Min Mat Fac Low Low Dat Pro Fac Levels Raised 19 | . 2 1 . 1 7 6 . . . 1 1 XP Earned 32427 | 3000 4036 1450 350 1650 9208 9425 295 224 105 1131 1553 XP Spent 31395 | 2960 2900 1100 . 1800 10600 8365 570 . . . 3100 Upgrades 59 | 9 5 2 . 2 9 21 3 . . . 8 Power Slot 1 | 1 . . . . . . . . . . . Propulsion Slot 4 | 1 1 . . . 1 1 . . . . . Utility Slot 8 | 1 1 . . 1 3 1 . . . . 1 Weapon Slot 2 | 1 1 . . . . . . . . . . Core Integrity 6 | . . . . . . . . . . . 6 Heat Dissipation 9 | 3 . . . . . 3 3 . . . . Mass Support 2 | . 1 . . . 1 . . . . . . Inventory Capacity 3 | 2 . . . . . 1 . . . . . Sensor Range 10 | . . . . . . 10 . . . . . Ranged Accuracy 8 | . 1 2 . 1 4 . . . . . . Hack Attack % 3 | . . . . . . 3 . . . . . Hack Defense % 2 | . . . . . . 2 . . . . . KI Damage % 1 | . . . . . . . . . . . 1 Protomatter Created 4654 | . 226 83 42 126 624 2379 145 70 . 307 652 Integrity Restored 8480 | . 509 217 367 291 922 3919 219 263 . 352 1421 Core 6445 | . 458 139 349 234 699 2874 175 176 . 258 1083 Parts 2035 | . 51 78 18 57 223 1045 44 87 . 94 338 Protomatter Decayed 1371 | . 24 7 58 56 267 480 55 . . 154 270 Game ------ Seed SmartMatterTrident Manual? 0 Play Time 01:50:10 Cumulative 420.9 hours Start 2025.10.22 @ 08:03:55 End 2025.10.22 @ 10:17:27 Sessions 1 Manual Loads 0 Difficulty Rogue Special Mode Winter2019/RPGLIKE Game No. 155 Rogue 1 Adventurer 154 Explorer 0 Win Type - Total 17 Types 3/3/3/3/1/1/0/1/1/1 Lore% 91 Gallery% 82 Achievement% 48 Wizard Run 0 Options --------- Layout 2 ASCII 0 Keyboard 0 Movement Numpad Keybinds 0 Fullscreen 2 Font 24/Smallcaps Map View 50x44 Zoom Use 0% Tactical HUD 1 Map Filters NONE Filters NONE Steam 1 RUN: 70ff40cd-51a6-4599-9671-4448d33f944a